Cogmind - Beta 16 @@@ ROGUE MODE // 2026.02.07 @ 12:05:28 Player: beans Result: Destroyed by as-60181 with Assembled Blade Performance ------------- Evolutions (0) 0 Regions Visited (2) 400 Robots Destroyed (7) 35 Value Destroyed (231) 231 Prototype IDs (0) 0 Alien Tech Used (0) 0 Bonus (-11) -11 TOTAL SCORE: 655 Bonus ------- Friendly Fire -11 Cogmind --------- Core Integrity 0/250 Matter 86/300 Energy 94/100 System Corruption 4% Temperature Cool (0) Movement Core (50) Location -10/Mines Parts ------- > --- POWER (1) -------- (None) > --- PROPULSION (2) --- (None) > --- UTILITY (2) ------ (None) > --- WEAPON (2) ------- Grenade Launcher > --- INVENTORY (5) ---- Shotgun Shotgun Shotgun Shotgun Peak State ------------ > --- POWER ------------ Ion Engine > --- PROPULSION ------- (None) > --- UTILITY ---------- (None) > --- WEAPON ----------- Shotgun Shotgun > --- INVENTORY -------- Small Laser Small Laser Grenade Launcher Grenade Launcher [Rating: 5] Favorites ----------- Power Ion Engine Engine Ion Engine Propulsion None Utility None Weapon Small Laser Energy Gun Small Laser Ballistic Gun Shotgun Launcher Grenade Launcher Build | -11 -10 -10 ------- Run | Yrd Mat Min Slots Evolved . | . . . Power . | . . . Propulsion . | . . . Utility . | . . . Weapon . | . . . Parts Attached 8 | 4 2 2 Power 2 | 2 . . Engine 2 | 2 . . Core . | . . . Reactor . | . . . Propulsion . | . . . Treads . | . . . Leg . | . . . Wheel . | . . . Hover . | . . . Flight . | . . . Utility . | . . . Device . | . . . Storage . | . . . Processor . | . . . Hackware . | . . . Protection . | . . . Artifact . | . . . Weapon 6 | 2 2 2 Energy Gun 2 | 2 . . Energy Cannon . | . . . Ballistic Gun 2 | . 2 . Ballistic Cannon . | . . . Launcher 2 | . . 2 Special Weapon . | . . . Impact Weapon . | . . . Slashing Weapon . | . . . Piercing Weapon . | . . . Special Melee Weapon . | . . . Unidentified Prototypes . | . . . Parts Lost 2 | . . 2 Power 1 | . . 1 Propulsion . | . . . Utility . | . . . Weapon 1 | . . 1 Highest Loss Streak 2 | . . 2 To Critical Strikes . | . . . Average Backups 1 | . 1 4 Power . | . . . Propulsion . | . . . Utility . | . . . Weapon 1 | . 1 4 Tool/Special . | . . . Unused Backups 3 | 1 . 2 Power . | . . . Propulsion . | . . . Utility . | . . . Weapon 3 | 1 . 2 Tool/Special . | . . . Average Slot Usage (%) 41 | . 42 38 Engine 13 | . 14 10 Energy Gun 15 | . 17 . Ballistic Gun 12 | . 10 24 Peak Build Rating 5 | 3 5 5 Average Rating 3 | 2 3 3 On Entrance 2 | . 3 5 Avg Prop Armor Cover (%) . | . . . Naked Turns . | . . . Heaviest Build 11 | 7 11 11 Greatest Support 3 | 3 3 3 Greatest Overweight (x) 3 | 2 3 3 Average Overweight (x) 1 | 1 2 2 Largest Inventory Capacity 5 | 5 5 5 Average Capacity 5 | 5 5 5 Most Carried 4 | 2 4 4 Average Carried 1 | . 1 4 Final Capacity 5 | 5 5 5 Final Carried 4 | . 4 4 Class Distribution -------------------- 100% | Mutant Dominant Class ---------------- Mutant | -10/Materials Mutant | -10/Mines Resources | -11 -10 -10 ----------- Run | Yrd Mat Min Matter Collected 256 | 161 95 . Remotely . | . . . Salvage Created 270 | . 192 78 Parts 14 | . 14 . Haulers Intercepted . | . . . Recyclers Shooed . | . . . Parts Field Recycled . | . . . Retrieved Matter . | . . . Parts Self-Destructed . | . . . Prevented . | . . . Parts Restored . | . . . Kills | -11 -10 -10 ------- Run | Yrd Mat Min Combat Hostiles Destroyed 12 | . 5 7 Guns 7 | . 5 2 AOE 5 | . . 5 Classes Destroyed 3 | . 2 1 Worker 1 | . 1 . Grunt 6 | . 5 1 Assembled 6 | . . 6 Best Kill Streak 7 | . 5 7 Combat Bots Only 7 | . 4 7 Max Kills in Single Turn 4 | . 1 4 Gunslinging . | . . . Exploded 4 | . . 4 Melee . | . . . Uniques/NPCs Destroyed . | . . . Combat | -11 -10 -10 -------- Run | Yrd Mat Min Hostile Shots Fired 65 | . 27 38 Missed 28 | . 9 19 Hits 37 | . 18 19 Melee 5 | . . 5 Projectile 32 | . 18 14 Damage Taken 615 | . 220 395 Core 261 | . 75 186 Absorbed by Shields . | . . . Core Remaining (%) 100 | 100 . . Volleys Fired 29 | . 19 10 Largest 2 | . 2 2 Hottest 80 | . 80 60 Shots Fired 53 | . 37 16 Gun 47 | . 37 10 Cannon . | . . . Launcher 6 | . . 6 Special . | . . . Kinetic 33 | . 23 10 Thermal 14 | . 14 . Explosive 6 | . . 6 Electromagnetic . | . . . Robot Hit Streak 9 | . 9 4 Robot Miss Streak 6 | . 6 5 Penetration Max . | . . . Secondary Targets 1 | . . 1 Max Gunslinging Chain 1 | . . 1 Shots Hit Robots 31 | . 21 10 Core Hits 40 | . 12 28 Critical Kills . | . . . Critical Parts Destroyed . | . . . Critical Strikes . | . . . Melee Attacks . | . . . Impact . | . . . Slashing . | . . . Piercing . | . . . Sneak Attacks . | . . . Combat Hostiles . | . . . Follow-up Attacks . | . . . Damage Inflicted 1032 | . 327 705 Guns 418 | . 327 91 Cannons . | . . . Explosions 614 | . . 614 Melee . | . . . Ramming . | . . . Kinetic 351 | . 260 91 Thermal 67 | . 67 . Explosive 614 | . . 614 Electromagnetic . | . . . Impact . | . . . Slashing . | . . . Piercing . | . . . Highest Corruption 4 | . 4 4 Average Corruption 3 | . 3 4 Corruption Purged . | . . . Corruption Blocked . | . . . Effects 5 | . 4 1 Message Errors 1 | . 1 . Matter Fused 1 | . 1 . Data Loss (minor) 2 | . 1 1 Weapon Failures 1 | . 1 . Overload Shots . | . . . Overflow Damage . | . . . Projectiles . | . . . Explosions . | . . . Melee . | . . . Knockbacks . | . . . Impact . | . . . Kinetic . | . . . Secondary . | . . . Self-Inflicted Damage 22 | . . 22 Shots 1 | . . 1 Rammed . | . . . Targets Rammed . | . . . Kicked . | . . . Crushed . | . . . Highest Temperature 84 | . 84 5 Average Temperature 28 | . 31 3 Received Heat Transfer 141 | . 120 21 Siege Activations . | . . . Martial Activations . | . . . Shielding Activations . | . . . Robots Disrupted . | . . . Combat Hostiles . | . . . Robots Corrupted . | . . . Combat Hostiles . | . . . Parts Fried . | . . . Impact Corruptions . | . . . Robots Melted . | . . . Combat Hostiles . | . . . Parts Melted . | . . . Heat Transferred 150 | . 150 . Parts Sabotaged . | . . . Parts Stolen . | . . . Parts Stripped . | . . . Power Chain Reactions . | . . . Alert | -11 -10 -10 ------- Run | Yrd Mat Min Maximum Alert Level . | . . . Low Security (%) 100 | 100 100 100 Level 1 . | . . . Level 2 . | . . . Level 3 . | . . . Level 4 . | . . . Level 5 . | . . . High Security . | . . . Max Security . | . . . Peak Influence 85 | . 85 67 Initial 28 | . . 28 Average 16 | . 16 49 Influence Increases 184 | . 125 59 Destroy 0b10 Robot/C 120 | . 100 20 Destroy 0b10 Robot/NC 5 | . 5 . Destroy Leader 30 | . 20 10 Destroy Structure 29 | . . 29 Influence Decreases 127 | . 50 77 Entered New Map 47 | . . 47 Time Decay 60 | . 50 10 Lost Part 20 | . . 20 Squads Dispatched 2 | . 2 . Investigation . | . . . Extermination . | . . . Reinforcement 2 | . 2 . Assault . | . . . Garrison . | . . . Intercept . | . . . Searches Triggered . | . . . Construction Impeded . | . . . Haulers Reinforced . | . . . Active Scanning Responses . | . . . Cargo Convoy Interrupts . | . . . Stealth | -11 -10 -10 --------- Run | Yrd Mat Min Distress Signals . | . . . Communications Jammed . | . . . Distress Signals . | . . . Times Spotted 32 | . 10 22 Peak Tracking Total 19 | . 5 19 Tactical Retreats . | . . . Traps | -11 -10 -10 ------- Run | Yrd Mat Min Traps Triggered 2 | . 2 . Indirectly . | . . . Trap Hack Attempts . | . . . Triggered . | . . . Disarmed . | . . . Reprogrammed . | . . . Reused . | . . . Traps Extracted . | . . . Installed . | . . . Triggered . | . . . Machines | -11 -10 -10 ---------- Run | Yrd Mat Min Machines Disabled . | . . . Max in Single Turn . | . . . Machines Repaired . | . . . Machines Dismantled . | . . . Machines Sabotaged . | . . . Overloaded Fab Kills . | . . . Hacking | -11 -10 -10 --------- Run | Yrd Mat Min Machines Accessed . | . . . Terminals . | . . . Fabricators . | . . . Repair Stations . | . . . Recycling Units . | . . . Scanalyzers . | . . . Garrison Access . | . . . Total Hacks . | . . . Successful . | . . . Failed . | . . . Catastrophic . | . . . Database Lockouts . | . . . Manual . | . . . Terminals . | . . . Fabricators . | . . . Repair Stations . | . . . Recycling Units . | . . . Scanalyzers . | . . . Garrison Access . | . . . Terminal Hacks . | . . . Fabricator Hacks . | . . . Repair Station Hacks . | . . . Recycling Unit Hacks . | . . . Scanalyzer . | . . . Garrison Access Hacks . | . . . Unauthorized Hacks . | . . . Terminals . | . . . Fabricators . | . . . Repair Stations . | . . . Recycling Units . | . . . Scanalyzers . | . . . Garrison Access . | . . . Data Cores Recovered . | . . . Used . | . . . Hacking Detections . | . . . Full Trace Events . | . . . Feedback Events . | . . . Feedback Blocked . | . . . Robot Schematics Acquired . | . . . Robots Built . | . . . Authchips . | . . . Time . | . . . Total Robot Build Rating . | . . . Part Schematics Acquired . | . . . Parts Built . | . . . Authchips . | . . . Time . | . . . Total Part Build Rating . | . . . Part Studies Acquired . | . . . Parts Repaired . | . . . Time . | . . . Parts Recycled . | . . . Recycled Matter . | . . . Retrieved Matter . | . . . Retrieved Components . | . . . Parts Scanalyzed . | . . . Part Schematics Acquired . | . . . Parts Damaged . | . . . Bothacking | -11 -10 -10 ------------ Run | Yrd Mat Min Used RIF Installer . | . . . Robots Hacked . | . . . Non-combat . | . . . Combat . | . . . Robot Hacks Applied . | . . . Relay Couplers Released . | . . . Fabnet Peak Effective % . | . . . Robots Rewired . | . . . Allies Hacked . | . . . Hacks Repelled . | . . . Allies | -11 -10 -10 -------- Run | Yrd Mat Min Total Allies . | . . . Largest Group . | . . . Highest-Rated Group . | . . . Highest-Rated Ally . | . . . Total Orders . | . . . Ally Attacks . | . . . Total Damage . | . . . Kills . | . . . Allies Corrupted . | . . . Allies Melted . | . . . Intel | -11 -10 -10 ------- Run | Yrd Mat Min Active Infowar (turns) . | . . . Robot Analysis Total . | . . . Derelict Logs Recovered . | . . . Drone Launches . | . . . Drone Recoveries . | . . . Exploration | -11 -10 -10 ------------- Run | Yrd Mat Min Turns Passed 304 | 64 208 32 Spaces Moved 138 | 49 87 2 Core 138 | 49 87 2 Treads . | . . . Legs . | . . . Wheels . | . . . Hover . | . . . Flight . | . . . Fastest Speed 50 | 50 150 100 Average Speed 142 | 112 159 150 Slowest Speed 200 | 150 200 200 Overloaded Moves . | . . . Propulsion Burnouts . | . . . Robots Hopped . | . . . Potential Cave-ins . | . . . Cave-ins Triggered . | . . . Exploration Rate (%) 12 | 3 28 7 Regions Visited 2 Branch Regions 1 Pre-discovered Areas . | . . . Known Exits Taken . | . . . Unknown Exits Taken 2 | 1 1 . Scrap Searched . | . . . Spaces Dug . | . . . Terrain Destroyed 31 | . . 31 Melee . | . . . Projectile . | . . . AOE 31 | . . 31 Terrain Rammed . | . . . Walls Destroyed . | . . . Machines Disabled . | . . . Actions | -11 -10 -10 --------- Run | Yrd Mat Min Total 192 | 59 119 14 Wait 4 | . 4 . Move 136 | 48 86 2 Hop . | . . . Pick Up 11 | 5 6 . Fast Attach . | . . . Attach 4 | 4 . . Detach . | . . . Swap 4 | . 2 2 Drop 4 | 2 2 . Fire 29 | . 19 10 Melee . | . . . Ram . | . . . Kick . | . . . Crush . | . . . Escape Stasis . | . . . Rewire . | . . . Trap . | . . . Miscellaneous . | . . . Route ------- -11/Scrapyard -10/Materials -10/Mines History --------- Turn | Location | Event 18 | -11/Scrapyard | Discovered new exit (range 16) 65 | -11/Scrapyard | Entered Materials 242 | -10/Materials | Discovered new exit (range 9) 273 | -10/Materials | Entered Mines 274 | -10/Mines | Assembled infested the area 279 | -10/Mines | Assisted by a Guerilla fighting off Assembled 294 | -10/Mines | Core integrity fell below 50% 303 | -10/Mines | Core integrity fell below 20% 305 | -10/Mines | Destroyed by as-60181 with Assembled Blade Last Messages --------------- HV Slug penetrates G-34 Mercenary. G-34 Mercenary suffers critical hit (Destroy). G-34 Mercenary destroyed. as-91006 destroyed. as-11215 destroyed. Ion Engine destroyed. HV Slug penetrates as-06340. as-06340 suffers critical hit (Destroy). System corrupted: Component data lost. as-30556 destroyed. QB-PT3(h) knocked back. HV Slug penetrates as-02935. as-02935 destroyed. HV Slug penetrates Wall. as-32017 destroyed. as-56111 destroyed. as-03797 destroyed. as-36221 destroyed. as-63872 destroyed. Grenade Launcher destroyed. Map ----- +----------------------------------------------------+ | ????????????????????????????????????? | | ????????????????????????????????????? | | ????????????????????????????????????? | | ????????????????????????????????????? | | ????????????????????????????????????? | | ????????????????????????????????????? | | ????????????????????????????????????? | | ????????????????????????????????????? | | ????????????????????????????????????? | | ????????????????????????????????????? | | ????????????????????????????????????? | | ???????????##???????????????????????? | | ??????????? ???????????????????????? | | ??????????# ???????? ??????????????? | | ??????????# a#??????? ????????????? | | ??????????# #?????? ????????????? | | ??????????#aa#????? ???????????? | | ?????????## #???? a ???????????? | | ?????????# ##??# a #;???????????? | | ????????## ## #???????????? | | ????????? # #???????????? | | ?????????# % #???????????? | | ?????????# #???????????? | | ?????????# #????????????? | | ?????????##a #????????????? | | ?????????# a@a % #??????????????? | | ?????????# haa #??????????????? | | ?????????# ##??????????????? | | ?????????## #######???????????????? | | ??????????#####?????????????????????? | | ????????????????????????????????????? | | ????????????????????????????????????? | | | | | | | | | | | | | | | | | | | | | | | | | | | | | | | | | | | | | +----------------------------------------------------+ Best States ------------- Heat Dissipation 25 Energy Generation 10 Energy Capacity 250 Matter Stores 246 Matter Capacity 300 Sight Range 16 Terrain Scan Density 10 Evasion (%) 40 Item Schematics ----------------- None Robot Schematics ------------------ None Fabricated ------------ Nothing Repaired ---------- Nothing Studied --------- None Alien Tech Used ----------------- None Achievements -------------- None Challenges ------------ None Game ------ Seed DroneGrapheneStick Manual? 0 Play Time 00:03:35 Cumulative 234.0 hours Start 2026.02.07 @ 12:02:48 End 2026.02.07 @ 12:05:28 Sessions 1 Manual Loads 0 Difficulty Rogue Special Mode None Game No. 648 Rogue 647 Adventurer 1 Explorer 0 Win Type - Total 0 Types 0/0/0/0/0/0/0/0/0/0 Lore% 65 Gallery% 64 Achievement% 40 Wizard Run 0 Options --------- Layout 1 ASCII 0 Keyboard 0 Movement Mouse Keybinds 0 Fullscreen 1 Font 24/Smallcaps Map View 50x35 Zoom Use 0% Tactical HUD 0 Map Filters NONE Filters NONE Steam 1 RUN: 3d92622a-452b-4d40-8efa-3d22dd339b96